[Event "Titled Tuesday Blitz February 21 Late 2023"]
[White "Ehlvest, Jaan"]
[Black "Gurevich, Ilya"]
[WhiteFideId "4500016"]
[BlackFideId "2000628"]
[WhiteElo "2530"]
[BlackElo "2586"]
[Result "1-0"]
[Round "01"]
[TimeControl "180+2"]
[Date "2023.02.21"]
[WhiteClock "0:00:30"]
[BlackClock "0:00:02"]

1. e4 {[%clk 0:02:59]}  c5 {[%clk 0:03:00]} 2. Nf3 {[%clk 0:02:58]}  e6 {[%clk 0:03:00]} 3. d4 {[%clk 0:02:58]}  cxd4 {[%clk 0:03:01]} 4. Nxd4 {[%clk 0:02:58]}  Nf6 {[%clk 0:03:02]} 5. Nc3 {[%clk 0:02:57]}  Nc6 {[%clk 0:03:02]} 6. Ndb5 {[%clk 0:02:55]}  Bb4 {[%clk 0:03:02]} 7. a3 {[%clk 0:02:54]}  Bxc3+ {[%clk 0:03:02]} 8. Nxc3 {[%clk 0:02:54]}  d5 {[%clk 0:03:03]} 9. exd5 {[%clk 0:02:53]}  exd5 {[%clk 0:03:04]} 10. Bd3 {[%clk 0:02:53]}  O-O {[%clk 0:03:04]} 11. O-O {[%clk 0:02:53]}  d4 {[%clk 0:03:04]} 12. Ne2 {[%clk 0:02:52]}  Bg4 {[%clk 0:03:05]} 13. h3 {[%clk 0:02:53]}  Bh5 {[%clk 0:03:05]} 14. f4 {[%clk 0:02:53]}  Bxe2 {[%clk 0:02:59]} 15. Qxe2 {[%clk 0:02:50]}  Re8 {[%clk 0:02:58]} 16. Qf3 {[%clk 0:02:48]}  Nd5 {[%clk 0:02:57]} 17. Bd2 {[%clk 0:02:48]}  Ne3 {[%clk 0:02:57]} 18. Rfe1 {[%clk 0:02:47]}  Qb6 {[%clk 0:02:56]} 19. b4 {[%clk 0:02:45]}  Re7 {[%clk 0:02:38]} 20. c4 {[%clk 0:02:45]}  Rae8 {[%clk 0:02:21]} 21. c5 {[%clk 0:02:43]}  Qc7 {[%clk 0:02:17]} 22. Rac1 {[%clk 0:02:42]}  a6 {[%clk 0:02:13]} 23. a4 {[%clk 0:02:41]}  h6 {[%clk 0:02:10]} 24. b5 {[%clk 0:02:38]}  axb5 {[%clk 0:02:11]} 25. axb5 {[%clk 0:02:38]}  Nd8 {[%clk 0:02:08]} 26. f5 {[%clk 0:02:26]}  f6 {[%clk 0:02:01]} 27. c6 {[%clk 0:02:20]}  bxc6 {[%clk 0:01:59]} 28. bxc6 {[%clk 0:02:20]}  Kh8 {[%clk 0:01:58]} 29. Bb4 {[%clk 0:01:44]}  Re5 {[%clk 0:01:55]} 30. Re2 {[%clk 0:01:25]}  Nf7 {[%clk 0:01:47]} 31. Ra2 {[%clk 0:01:21]}  Ng5 {[%clk 0:01:43]} 32. Qf4 {[%clk 0:01:19]}  Nd5 {[%clk 0:01:43]} 33. Qxd4 {[%clk 0:01:18]}  Nxb4 {[%clk 0:00:57]} 34. Qxb4 {[%clk 0:01:16]}  Re3 {[%clk 0:00:57]} 35. Bf1 {[%clk 0:01:08]}  Qg3 {[%clk 0:00:57]} 36. Kh1 {[%clk 0:01:08]}  Ne4 {[%clk 0:00:30]} 37. c7 {[%clk 0:00:52]}  Nf2+ {[%clk 0:00:03]} 38. Rxf2 {[%clk 0:00:50]}  Qxf2 {[%clk 0:00:04]} 39. c8=Q {[%clk 0:00:49]}  Rxc8 {[%clk 0:00:04]} 40. Rxc8+ {[%clk 0:00:47]}  Kh7 {[%clk 0:00:05]} 41. Qc4 {[%clk 0:00:41]}  h5 {[%clk 0:00:02]} 42. h4 {[%clk 0:00:32]}  Qxh4+ {[%clk 0:00:02]} 43. Qxh4 {[%clk 0:00:30]} 1-0


[Site "https://www.chess.com"]

[Event "Titled Tuesday Blitz February 21 Late 2023"]
[White "Eckert, Doug"]
[Black "Grycel, Kamil"]
[WhiteFideId "2001993"]
[BlackFideId "1115499"]
[WhiteElo "2075"]
[BlackElo "2315"]
[Result "0-1"]
[Round "01"]
[TimeControl "180+2"]
[Date "2023.02.21"]
[WhiteClock "0:00:26"]
[BlackClock "0:01:00"]

1. d4 {[%clk 0:02:55]}  b6 {[%clk 0:02:59]} 2. c4 {[%clk 0:02:54]}  Bb7 {[%clk 0:02:59]} 3. Nc3 {[%clk 0:02:53]}  Nf6 {[%clk 0:02:59]} 4. d5 {[%clk 0:02:46]}  g6 {[%clk 0:02:56]} 5. e4 {[%clk 0:02:44]}  d6 {[%clk 0:02:55]} 6. Nf3 {[%clk 0:02:42]}  Bg7 {[%clk 0:02:55]} 7. Be2 {[%clk 0:02:42]}  O-O {[%clk 0:02:55]} 8. O-O {[%clk 0:02:42]}  Nbd7 {[%clk 0:02:54]} 9. Be3 {[%clk 0:02:30]}  Ne5 {[%clk 0:02:48]} 10. Nxe5 {[%clk 0:02:28]}  dxe5 {[%clk 0:02:49]} 11. c5 {[%clk 0:02:25]}  bxc5 {[%clk 0:02:47]} 12. Bxc5 {[%clk 0:02:25]}  Ne8 {[%clk 0:02:47]} 13. Qb3 {[%clk 0:02:13]}  Bc8 {[%clk 0:02:42]} 14. Rac1 {[%clk 0:02:05]}  Nd6 {[%clk 0:02:41]} 15. Rc2 {[%clk 0:01:56]}  f5 {[%clk 0:02:35]} 16. f3 {[%clk 0:01:52]}  fxe4 {[%clk 0:02:15]} 17. fxe4 {[%clk 0:01:49]}  Rxf1+ {[%clk 0:02:15]} 18. Bxf1 {[%clk 0:01:48]}  Bd7 {[%clk 0:02:16]} 19. Bxd6 {[%clk 0:01:41]}  cxd6 {[%clk 0:02:08]} 20. Nd1 {[%clk 0:01:31]}  Rb8 {[%clk 0:02:04]} 21. Qc3 {[%clk 0:01:27]}  Qb6+ {[%clk 0:02:02]} 22. Qe3 {[%clk 0:01:22]}  Qb7 {[%clk 0:01:48]} 23. b3 {[%clk 0:01:19]}  h5 {[%clk 0:01:46]} 24. Qg5 {[%clk 0:01:07]}  Be8 {[%clk 0:01:44]} 25. Nf2 {[%clk 0:00:55]}  Kh7 {[%clk 0:01:42]} 26. Nh3 {[%clk 0:00:50]}  Bh6 {[%clk 0:01:35]} 27. Qg3 {[%clk 0:00:50]}  Qb6+ {[%clk 0:01:33]} 28. Kh1 {[%clk 0:00:48]}  Bb5 {[%clk 0:01:31]} 29. Rf2 {[%clk 0:00:41]}  Rf8 {[%clk 0:01:02]} 30. Rxf8 {[%clk 0:00:35]}  Bxf8 {[%clk 0:01:03]} 31. Ng5+ {[%clk 0:00:35]}  Kh6 {[%clk 0:01:03]} 32. Bxb5 {[%clk 0:00:29]}  Qxb5 {[%clk 0:01:03]} 33. h4 {[%clk 0:00:28]}  Qf1+ {[%clk 0:01:02]} 34. Kh2 {[%clk 0:00:28]}  Bg7 {[%clk 0:01:01]} 35. Nf7+ {[%clk 0:00:26]}  Kh7 {[%clk 0:01:01]} 36. Ng5+ {[%clk 0:00:26]}  Kh6 {[%clk 0:01:00]} 37. Nf7+ {[%clk 0:00:26]}  Qxf7 {[%clk 0:01:00]} 0-1


[Site "https://www.chess.com"]

[Event "Titled Tuesday Blitz February 21 Late 2023"]
[White "Martinez Reyes, Pedro Ramon"]
[Black "Better_Chess_Faster"]
[WhiteFideId "3901807"]
[WhiteElo "2376"]
[BlackElo "1982"]
[Result "1-0"]
[Round "01"]
[TimeControl "180+2"]
[Date "2023.02.21"]
[WhiteClock "0:00:47"]
[BlackClock "0:00:21"]

1. e4 {[%clk 0:02:57]}  d6 {[%clk 0:02:59]} 2. d4 {[%clk 0:02:56]}  Nf6 {[%clk 0:02:59]} 3. Nc3 {[%clk 0:02:55]}  g6 {[%clk 0:02:59]} 4. Be2 {[%clk 0:02:51]}  Bg7 {[%clk 0:02:58]} 5. g4 {[%clk 0:02:50]}  d5 {[%clk 0:02:55]} 6. e5 {[%clk 0:02:44]}  Ne4 {[%clk 0:02:55]} 7. h4 {[%clk 0:02:36]}  c5 {[%clk 0:02:45]} 8. Nxe4 {[%clk 0:02:03]}  dxe4 {[%clk 0:02:44]} 9. c3 {[%clk 0:02:03]}  cxd4 {[%clk 0:02:41]} 10. cxd4 {[%clk 0:02:02]}  Nc6 {[%clk 0:02:41]} 11. Be3 {[%clk 0:02:02]}  Qa5+ {[%clk 0:02:37]} 12. Kf1 {[%clk 0:01:57]}  Bd7 {[%clk 0:02:24]} 13. Qb3 {[%clk 0:01:53]}  Qb4 {[%clk 0:02:21]} 14. Bc4 {[%clk 0:01:44]}  Qxb3 {[%clk 0:02:14]} 15. Bxb3 {[%clk 0:01:45]}  Bxg4 {[%clk 0:02:14]} 16. Bd5 {[%clk 0:01:22]}  Rd8 {[%clk 0:02:11]} 17. Bxc6+ {[%clk 0:01:22]}  bxc6 {[%clk 0:02:10]} 18. Rc1 {[%clk 0:01:22]}  Kd7 {[%clk 0:02:07]} 19. Nh3 {[%clk 0:01:19]}  Bxh3+ {[%clk 0:01:58]} 20. Rxh3 {[%clk 0:01:19]}  Rb8 {[%clk 0:01:56]} 21. b3 {[%clk 0:01:19]}  e6 {[%clk 0:01:52]} 22. h5 {[%clk 0:01:19]}  Rb7 {[%clk 0:01:40]} 23. Ke2 {[%clk 0:01:18]}  a5 {[%clk 0:01:35]} 24. Rc4 {[%clk 0:01:18]}  gxh5 {[%clk 0:01:26]} 25. Rxh5 {[%clk 0:01:14]}  Bf8 {[%clk 0:01:26]} 26. Rh4 {[%clk 0:01:13]}  Be7 {[%clk 0:01:25]} 27. Rxe4 {[%clk 0:01:13]}  h5 {[%clk 0:01:23]} 28. Rf4 {[%clk 0:01:13]}  h4 {[%clk 0:01:22]} 29. Rxf7 {[%clk 0:01:06]}  h3 {[%clk 0:01:17]} 30. Rc1 {[%clk 0:01:00]}  Ke8 {[%clk 0:01:16]} 31. Rg7 {[%clk 0:00:59]}  Kf8 {[%clk 0:01:11]} 32. Rg3 {[%clk 0:00:55]}  a4 {[%clk 0:01:03]} 33. Rh1 {[%clk 0:00:55]}  h2 {[%clk 0:01:01]} 34. Bf4 {[%clk 0:00:51]}  axb3 {[%clk 0:01:00]} 35. Rxb3 {[%clk 0:00:51]}  Rxb3 {[%clk 0:00:57]} 36. axb3 {[%clk 0:00:52]}  Rh4 {[%clk 0:00:51]} 37. Kf3 {[%clk 0:00:52]}  Rh3+ {[%clk 0:00:45]} 38. Bg3 {[%clk 0:00:51]}  c5 {[%clk 0:00:41]} 39. dxc5 {[%clk 0:00:48]}  Bxc5 {[%clk 0:00:39]} 40. Rxh2 {[%clk 0:00:46]}  Rxh2 {[%clk 0:00:40]} 41. Bxh2 {[%clk 0:00:47]}  Kf7 {[%clk 0:00:39]} 42. Bg3 {[%clk 0:00:47]}  Kg6 {[%clk 0:00:39]} 43. Ke4 {[%clk 0:00:48]}  Bb4 {[%clk 0:00:35]} 44. f4 {[%clk 0:00:46]}  Bd2 {[%clk 0:00:33]} 45. Bf2 {[%clk 0:00:44]}  Bc1 {[%clk 0:00:31]} 46. b4 {[%clk 0:00:43]}  Ba3 {[%clk 0:00:30]} 47. b5 {[%clk 0:00:44]}  Be7 {[%clk 0:00:28]} 48. b6 {[%clk 0:00:44]}  Bd8 {[%clk 0:00:29]} 49. b7 {[%clk 0:00:44]}  Bc7 {[%clk 0:00:29]} 50. Bc5 {[%clk 0:00:45]}  Kf7 {[%clk 0:00:26]} 51. Bd6 {[%clk 0:00:46]}  Bxd6 {[%clk 0:00:21]} 52. exd6 {[%clk 0:00:47]} 1-0


[Site "https://www.chess.com"]

[Event "Titled Tuesday Blitz February 21 Late 2023"]
[White "Dias, Joao Batista"]
[Black "Deng, Henry"]
[WhiteFideId "2108240"]
[BlackFideId "30965454"]
[WhiteElo "1796"]
[BlackElo "2168"]
[Result "0-1"]
[Round "01"]
[TimeControl "180+2"]
[Date "2023.02.21"]
[WhiteClock "0:01:02"]
[BlackClock "0:02:05"]

1. e4 {[%clk 0:02:59]}  c5 {[%clk 0:02:59]} 2. Nf3 {[%clk 0:02:58]}  e6 {[%clk 0:02:59]} 3. b3 {[%clk 0:02:57]}  a6 {[%clk 0:02:58]} 4. Bb2 {[%clk 0:02:57]}  Nc6 {[%clk 0:02:58]} 5. h3 {[%clk 0:02:56]}  b5 {[%clk 0:02:58]} 6. Nc3 {[%clk 0:02:55]}  Bb7 {[%clk 0:02:58]} 7. Be2 {[%clk 0:02:55]}  d6 {[%clk 0:02:55]} 8. Qc1 {[%clk 0:02:54]}  Nf6 {[%clk 0:02:54]} 9. d3 {[%clk 0:02:54]}  Be7 {[%clk 0:02:52]} 10. O-O {[%clk 0:02:54]}  O-O {[%clk 0:02:52]} 11. Nd1 {[%clk 0:02:53]}  Rc8 {[%clk 0:02:51]} 12. Ne3 {[%clk 0:02:52]}  d5 {[%clk 0:02:47]} 13. exd5 {[%clk 0:02:41]}  Nxd5 {[%clk 0:02:43]} 14. Nxd5 {[%clk 0:02:38]}  Qxd5 {[%clk 0:02:40]} 15. Qf4 {[%clk 0:02:20]}  f6 {[%clk 0:02:35]} 16. Rfe1 {[%clk 0:02:10]}  e5 {[%clk 0:02:33]} 17. Qg3 {[%clk 0:02:09]}  Qd7 {[%clk 0:02:29]} 18. Nd2 {[%clk 0:01:59]}  Nd4 {[%clk 0:02:28]} 19. Bxd4 {[%clk 0:01:53]}  cxd4 {[%clk 0:02:26]} 20. Rac1 {[%clk 0:01:52]}  Ba3 {[%clk 0:02:26]} 21. Ne4 {[%clk 0:01:34]}  Bxc1 {[%clk 0:02:22]} 22. Rxc1 {[%clk 0:01:34]}  Bxe4 {[%clk 0:02:22]} 23. dxe4 {[%clk 0:01:34]}  Rc3 {[%clk 0:02:22]} 24. Bd3 {[%clk 0:01:34]}  Rfc8 {[%clk 0:02:21]} 25. Rd1 {[%clk 0:01:31]}  Kh8 {[%clk 0:02:18]} 26. Kh2 {[%clk 0:01:30]}  Qe7 {[%clk 0:02:17]} 27. f4 {[%clk 0:01:20]}  exf4 {[%clk 0:02:16]} 28. Qxf4 {[%clk 0:01:20]}  Qe5 {[%clk 0:02:15]} 29. Kg3 {[%clk 0:01:19]}  Kg8 {[%clk 0:02:10]} 30. Kf3 {[%clk 0:01:19]}  Qh5+ {[%clk 0:02:07]} 31. Qg4 {[%clk 0:01:13]}  Qh6 {[%clk 0:02:06]} 32. Qf4 {[%clk 0:01:10]}  Qh5+ {[%clk 0:02:04]} 33. Qg4 {[%clk 0:01:10]}  Qxg4+ {[%clk 0:02:05]} 34. Kxg4 {[%clk 0:01:10]}  Kf7 {[%clk 0:02:05]} 35. h4 {[%clk 0:01:10]}  Ke6 {[%clk 0:02:06]} 36. h5 {[%clk 0:01:10]}  g6 {[%clk 0:02:05]} 37. Rf1 {[%clk 0:01:08]}  Ke5 {[%clk 0:02:05]} 38. g3 {[%clk 0:01:04]}  Rxc2 {[%clk 0:02:05]} 39. Bxc2 {[%clk 0:01:03]}  Rxc2 {[%clk 0:02:06]} 40. hxg6 {[%clk 0:01:02]}  hxg6 {[%clk 0:02:06]} 41. Rh1 {[%clk 0:01:03]}  d3 {[%clk 0:02:05]} 42. Rd1 {[%clk 0:01:02]}  Kxe4 {[%clk 0:02:05]} 0-1


[Site "https://www.chess.com"]

[Event "Titled Tuesday Blitz February 21 Late 2023"]
[White "Postma, Dinant"]
[Black "Eliteplayer3"]
[WhiteFideId "1018612"]
[WhiteElo "2131"]
[BlackElo "1962"]
[Result "1-0"]
[Round "01"]
[TimeControl "180+2"]
[Date "2023.02.21"]
[WhiteClock "0:00:19"]
[BlackClock "0:00:43"]

1. d4 {[%clk 0:02:57]}  d5 {[%clk 0:02:58]} 2. Bf4 {[%clk 0:02:55]}  Nf6 {[%clk 0:02:56]} 3. e3 {[%clk 0:02:55]}  c5 {[%clk 0:02:56]} 4. c3 {[%clk 0:02:55]}  Nc6 {[%clk 0:02:56]} 5. Nd2 {[%clk 0:02:55]}  g6 {[%clk 0:02:55]} 6. Ngf3 {[%clk 0:02:53]}  Bg7 {[%clk 0:02:56]} 7. Be2 {[%clk 0:02:53]}  O-O {[%clk 0:02:52]} 8. O-O {[%clk 0:02:49]}  Nh5 {[%clk 0:02:51]} 9. Be5 {[%clk 0:02:37]}  f6 {[%clk 0:02:46]} 10. Bg3 {[%clk 0:02:35]}  Nxg3 {[%clk 0:02:45]} 11. hxg3 {[%clk 0:02:34]}  e5 {[%clk 0:02:45]} 12. dxc5 {[%clk 0:02:33]}  Be6 {[%clk 0:02:27]} 13. b4 {[%clk 0:02:27]}  f5 {[%clk 0:02:22]} 14. Nb3 {[%clk 0:02:17]}  f4 {[%clk 0:02:17]} 15. gxf4 {[%clk 0:02:10]}  exf4 {[%clk 0:02:16]} 16. Nfd4 {[%clk 0:02:04]}  Nxd4 {[%clk 0:02:15]} 17. Nxd4 {[%clk 0:02:04]}  Bd7 {[%clk 0:02:10]} 18. Bf3 {[%clk 0:01:58]}  Qg5 {[%clk 0:02:08]} 19. Qb3 {[%clk 0:01:52]}  fxe3 {[%clk 0:01:57]} 20. Qxd5+ {[%clk 0:01:50]}  Qxd5 {[%clk 0:01:56]} 21. Bxd5+ {[%clk 0:01:51]}  Kh8 {[%clk 0:01:56]} 22. fxe3 {[%clk 0:01:49]}  Rfe8 {[%clk 0:01:54]} 23. Bxb7 {[%clk 0:01:34]}  Rab8 {[%clk 0:01:50]} 24. c6 {[%clk 0:01:34]}  Bg4 {[%clk 0:01:49]} 25. Rae1 {[%clk 0:01:32]}  Bh6 {[%clk 0:01:47]} 26. e4 {[%clk 0:01:28]}  Re7 {[%clk 0:01:41]} 27. Nb3 {[%clk 0:01:14]}  Re5 {[%clk 0:01:34]} 28. Nc5 {[%clk 0:01:08]}  Rh5 {[%clk 0:01:33]} 29. c7 {[%clk 0:00:59]}  Rxb7 {[%clk 0:01:20]} 30. Nxb7 {[%clk 0:00:58]}  Bd2 {[%clk 0:01:16]} 31. Nd6 {[%clk 0:00:31]}  Bxc3 {[%clk 0:00:55]} 32. c8=Q+ {[%clk 0:00:31]}  Bxc8 {[%clk 0:00:55]} 33. Nxc8 {[%clk 0:00:31]}  Kg7 {[%clk 0:00:53]} 34. Rd1 {[%clk 0:00:27]}  Bxb4 {[%clk 0:00:52]} 35. g4 {[%clk 0:00:26]}  Rh4 {[%clk 0:00:51]} 36. Kg2 {[%clk 0:00:26]}  Rxg4+ {[%clk 0:00:50]} 37. Kf3 {[%clk 0:00:26]}  Rg5 {[%clk 0:00:50]} 38. Rd7+ {[%clk 0:00:24]}  Kf8 {[%clk 0:00:46]} 39. Nxa7 {[%clk 0:00:23]}  Ke8 {[%clk 0:00:46]} 40. Rxh7 {[%clk 0:00:23]}  Ra5 {[%clk 0:00:46]} 41. Nc6 {[%clk 0:00:22]}  Bc5 {[%clk 0:00:44]} 42. Nxa5 {[%clk 0:00:21]}  Bb4 {[%clk 0:00:43]} 43. Nc6 {[%clk 0:00:19]} 1-0


[Site "https://www.chess.com"]

[Event "Titled Tuesday Blitz February 21 Late 2023"]
[White "Averjanov, Alexey"]
[Black "Nakamura, Hikaru"]
[WhiteFideId "14109867"]
[BlackFideId "2016192"]
[WhiteElo "2399"]
[BlackElo "2775"]
[Result "0-1"]
[Round "02"]
[TimeControl "180+2"]
[Date "2023.02.21"]
[WhiteClock "0:00:01"]
[BlackClock "0:01:41"]

1. d4 {[%clk 0:03:00]}  d6 {[%clk 0:02:59]} 2. c4 {[%clk 0:03:00]}  g6 {[%clk 0:02:57]} 3. Nc3 {[%clk 0:02:59]}  Bg7 {[%clk 0:02:58]} 4. Nf3 {[%clk 0:02:59]}  f5 {[%clk 0:02:56]} 5. g3 {[%clk 0:02:58]}  Nf6 {[%clk 0:02:54]} 6. Bg2 {[%clk 0:02:57]}  c6 {[%clk 0:02:54]} 7. O-O {[%clk 0:02:55]}  O-O {[%clk 0:02:55]} 8. b3 {[%clk 0:02:51]}  Qa5 {[%clk 0:02:54]} 9. Bb2 {[%clk 0:02:47]}  e5 {[%clk 0:02:54]} 10. Qd2 {[%clk 0:02:46]}  Qc7 {[%clk 0:02:50]} 11. dxe5 {[%clk 0:02:29]}  dxe5 {[%clk 0:02:51]} 12. e4 {[%clk 0:02:29]}  f4 {[%clk 0:02:51]} 13. gxf4 {[%clk 0:02:28]}  Nh5 {[%clk 0:02:49]} 14. fxe5 {[%clk 0:02:14]}  Nf4 {[%clk 0:02:49]} 15. Qd6 {[%clk 0:02:01]}  Qxd6 {[%clk 0:02:48]} 16. exd6 {[%clk 0:01:58]}  Bxc3 {[%clk 0:02:44]} 17. Bxc3 {[%clk 0:01:59]}  Ne2+ {[%clk 0:02:45]} 18. Kh1 {[%clk 0:01:59]}  Nxc3 {[%clk 0:02:45]} 19. Rfe1 {[%clk 0:01:32]}  b5 {[%clk 0:02:45]} 20. cxb5 {[%clk 0:01:17]}  Nxb5 {[%clk 0:02:44]} 21. e5 {[%clk 0:01:14]}  Rxf3 {[%clk 0:02:20]} 22. Bxf3 {[%clk 0:01:13]}  Nd4 {[%clk 0:02:20]} 23. Be4 {[%clk 0:01:07]}  a5 {[%clk 0:02:18]} 24. Rad1 {[%clk 0:01:01]}  Ne6 {[%clk 0:02:18]} 25. Kg2 {[%clk 0:00:54]}  Bd7 {[%clk 0:02:11]} 26. Kg3 {[%clk 0:00:52]}  Na6 {[%clk 0:02:11]} 27. f4 {[%clk 0:00:49]}  Nac5 {[%clk 0:02:12]} 28. Bg2 {[%clk 0:00:43]}  Ng7 {[%clk 0:02:10]} 29. Rf1 {[%clk 0:00:27]}  Rb8 {[%clk 0:01:58]} 30. Rc1 {[%clk 0:00:24]}  Nf5+ {[%clk 0:01:57]} 31. Kf3 {[%clk 0:00:19]}  Ne6 {[%clk 0:01:57]} 32. Ke2 {[%clk 0:00:16]}  a4 {[%clk 0:01:55]} 33. Rc3 {[%clk 0:00:12]}  axb3 {[%clk 0:01:55]} 34. axb3 {[%clk 0:00:13]}  Rb4 {[%clk 0:01:54]} 35. Kd2 {[%clk 0:00:08]}  Ned4 {[%clk 0:01:45]} 36. Rb1 {[%clk 0:00:04]}  Kf7 {[%clk 0:01:43]} 37. Be4 {[%clk 0:00:03]}  Nxb3+ {[%clk 0:01:41]} 38. Rbxb3 {[%clk 0:00:01]}  Rxe4 {[%clk 0:01:41]} 0-1


[Site "https://www.chess.com"]

[Event "Titled Tuesday Blitz February 21 Late 2023"]
[White "Mustafayev, Farid"]
[Black "Caruana, Fabiano"]
[WhiteFideId "13408771"]
[BlackFideId "2020009"]
[WhiteElo "2316"]
[BlackElo "2764"]
[Result "0-1"]
[Round "02"]
[TimeControl "180+2"]
[Date "2023.02.21"]
[WhiteClock "0:00:21"]
[BlackClock "0:00:41"]

1. c4 {[%clk 0:03:00]}  e5 {[%clk 0:02:59]} 2. Nc3 {[%clk 0:03:00]}  Bb4 {[%clk 0:02:59]} 3. g3 {[%clk 0:02:58]}  Bxc3 {[%clk 0:02:56]} 4. bxc3 {[%clk 0:02:58]}  Nc6 {[%clk 0:02:56]} 5. Bg2 {[%clk 0:02:58]}  Nge7 {[%clk 0:02:56]} 6. d3 {[%clk 0:02:58]}  O-O {[%clk 0:02:56]} 7. c5 {[%clk 0:02:56]}  b6 {[%clk 0:02:56]} 8. cxb6 {[%clk 0:02:56]}  axb6 {[%clk 0:02:56]} 9. Nf3 {[%clk 0:02:57]}  d5 {[%clk 0:02:51]} 10. O-O {[%clk 0:02:56]}  f6 {[%clk 0:02:47]} 11. Nd2 {[%clk 0:02:50]}  Be6 {[%clk 0:02:47]} 12. a4 {[%clk 0:02:46]}  Qd7 {[%clk 0:02:47]} 13. Ba3 {[%clk 0:02:44]}  Ra7 {[%clk 0:02:45]} 14. Qc2 {[%clk 0:02:18]}  Rfa8 {[%clk 0:02:44]} 15. Bb2 {[%clk 0:02:12]}  Nd8 {[%clk 0:02:38]} 16. f4 {[%clk 0:02:08]}  Nf7 {[%clk 0:02:31]} 17. c4 {[%clk 0:02:03]}  exf4 {[%clk 0:02:22]} 18. Rxf4 {[%clk 0:01:55]}  Rxa4 {[%clk 0:02:22]} 19. Rxa4 {[%clk 0:01:48]}  Qxa4 {[%clk 0:02:23]} 20. Qxa4 {[%clk 0:01:45]}  Rxa4 {[%clk 0:02:21]} 21. cxd5 {[%clk 0:01:45]}  Bd7 {[%clk 0:02:12]} 22. Rc4 {[%clk 0:01:32]}  Rxc4 {[%clk 0:02:01]} 23. dxc4 {[%clk 0:01:33]}  Nf5 {[%clk 0:02:00]} 24. Kf2 {[%clk 0:01:30]}  N5d6 {[%clk 0:01:56]} 25. Ba3 {[%clk 0:01:23]}  Ne5 {[%clk 0:01:43]} 26. c5 {[%clk 0:01:19]}  bxc5 {[%clk 0:01:40]} 27. Bxc5 {[%clk 0:01:17]}  Kf7 {[%clk 0:01:40]} 28. h3 {[%clk 0:01:11]}  h5 {[%clk 0:01:39]} 29. Ne4 {[%clk 0:01:11]}  Nxe4+ {[%clk 0:01:38]} 30. Bxe4 {[%clk 0:01:12]}  Bxh3 {[%clk 0:01:38]} 31. Bb4 {[%clk 0:01:04]}  Nc4 {[%clk 0:01:34]} 32. Bd3 {[%clk 0:00:50]}  Nb6 {[%clk 0:01:34]} 33. e4 {[%clk 0:00:49]}  Bg4 {[%clk 0:01:24]} 34. Ke3 {[%clk 0:00:49]}  g5 {[%clk 0:01:18]} 35. Ba5 {[%clk 0:00:49]}  Ke7 {[%clk 0:01:06]} 36. Kd4 {[%clk 0:00:46]}  h4 {[%clk 0:01:00]} 37. gxh4 {[%clk 0:00:46]}  gxh4 {[%clk 0:01:01]} 38. Be1 {[%clk 0:00:46]}  h3 {[%clk 0:01:00]} 39. Bg3 {[%clk 0:00:46]}  Nd7 {[%clk 0:00:51]} 40. Bxc7 {[%clk 0:00:24]}  Ne5 {[%clk 0:00:51]} 41. Bb5 {[%clk 0:00:25]}  h2 {[%clk 0:00:46]} 42. d6+ {[%clk 0:00:25]}  Kf7 {[%clk 0:00:42]} 43. d7 {[%clk 0:00:25]}  Bxd7 {[%clk 0:00:42]} 44. Bc4+ {[%clk 0:00:21]}  Be6 {[%clk 0:00:41]} 0-1


[Site "https://www.chess.com"]

[Event "Titled Tuesday Blitz February 21 Late 2023"]
[White "Vachier-Lagrave, Maxime"]
[Black "Panesso Rivera, Henry"]
[WhiteFideId "623539"]
[BlackFideId "4402707"]
[WhiteElo "2742"]
[BlackElo "2342"]
[Result "1-0"]
[Round "02"]
[TimeControl "180+2"]
[Date "2023.02.21"]
[WhiteClock "0:00:08"]
[BlackClock "0:00:03"]

1. e4 {[%clk 0:03:00]}  c5 {[%clk 0:02:58]} 2. Nf3 {[%clk 0:03:00]}  e6 {[%clk 0:02:55]} 3. c3 {[%clk 0:02:59]}  Nf6 {[%clk 0:02:54]} 4. e5 {[%clk 0:02:55]}  Nd5 {[%clk 0:02:54]} 5. Na3 {[%clk 0:02:40]}  d6 {[%clk 0:02:46]} 6. exd6 {[%clk 0:02:37]}  Nc6 {[%clk 0:02:44]} 7. Nc4 {[%clk 0:02:34]}  Bxd6 {[%clk 0:02:42]} 8. d4 {[%clk 0:02:27]}  O-O {[%clk 0:02:38]} 9. Nxd6 {[%clk 0:02:07]}  Qxd6 {[%clk 0:02:37]} 10. dxc5 {[%clk 0:02:04]}  Qxc5 {[%clk 0:02:37]} 11. Bd3 {[%clk 0:01:59]}  e5 {[%clk 0:02:11]} 12. O-O {[%clk 0:01:35]}  h6 {[%clk 0:02:00]} 13. Qe2 {[%clk 0:01:29]}  Re8 {[%clk 0:01:50]} 14. Re1 {[%clk 0:01:07]}  Nf6 {[%clk 0:01:12]} 15. Be3 {[%clk 0:01:04]}  Qe7 {[%clk 0:01:04]} 16. Bc2 {[%clk 0:00:56]}  Bg4 {[%clk 0:01:02]} 17. h3 {[%clk 0:00:54]}  Bh5 {[%clk 0:01:00]} 18. g4 {[%clk 0:00:44]}  Bg6 {[%clk 0:00:52]} 19. Bxg6 {[%clk 0:00:43]}  fxg6 {[%clk 0:00:52]} 20. Qc4+ {[%clk 0:00:42]}  Kh7 {[%clk 0:00:49]} 21. g5 {[%clk 0:00:32]}  Nh5 {[%clk 0:00:46]} 22. Qe4 {[%clk 0:00:26]}  Rf8 {[%clk 0:00:44]} 23. Rad1 {[%clk 0:00:23]}  Qe6 {[%clk 0:00:44]} 24. Kh2 {[%clk 0:00:17]}  Rf7 {[%clk 0:00:39]} 25. gxh6 {[%clk 0:00:16]}  gxh6 {[%clk 0:00:37]} 26. Nh4 {[%clk 0:00:12]}  Raf8 {[%clk 0:00:34]} 27. Rg1 {[%clk 0:00:11]}  Ne7 {[%clk 0:00:26]} 28. Qg4 {[%clk 0:00:09]}  Qxg4 {[%clk 0:00:17]} 29. hxg4 {[%clk 0:00:10]}  Nf4 {[%clk 0:00:17]} 30. Bxa7 {[%clk 0:00:10]}  Ne6 {[%clk 0:00:15]} 31. Be3 {[%clk 0:00:10]}  Nc6 {[%clk 0:00:15]} 32. Rd6 {[%clk 0:00:10]}  Ng5 {[%clk 0:00:14]} 33. Rxg6 {[%clk 0:00:07]}  Nf3+ {[%clk 0:00:13]} 34. Kh1 {[%clk 0:00:06]}  Nxg1 {[%clk 0:00:09]} 35. Rxh6+ {[%clk 0:00:06]}  Kg7 {[%clk 0:00:08]} 36. Kxg1 {[%clk 0:00:07]}  Rd7 {[%clk 0:00:05]} 37. Nf5+ {[%clk 0:00:07]}  Kf7 {[%clk 0:00:04]} 38. Kg2 {[%clk 0:00:07]}  Rd1 {[%clk 0:00:04]} 39. Kf3 {[%clk 0:00:07]}  Rfd8 {[%clk 0:00:03]} 40. b4 {[%clk 0:00:08]} 1-0


[Site "https://www.chess.com"]